lending/lending_fUSD_20251015
["ID","MTS","AMOUNT","RATE_DAILY","PERIOD"]
[391324443,1760528947644,-192.03,0.00014817,2]
[391324444,1760528949089,-250.01503591,0.00014817,2]
[391324450,1760528966471,-313.47952039,0.00014817,2]
[391324451,1760528972210,-154.77803713,0.00014817,2]
[391324452,1760528974142,-173.04959916,0.00014817,2]
[391324453,1760528975716,-262.18818496,0.00014817,2]
[391324454,1760528979960,-263.76284894,0.00014817,2]
[391324455,1760528983628,-166.02929829,0.00014817,2]
[391324456,1760528985134,-217.69290951,0.00014817,2]
[391324457,1760528989663,-268.35715914,0.00014817,2]
[391324458,1760528994127,-161.10732217,0.00014817,2]
[391324459,1760529010368,-250.0,0.00014817,2]
[391324460,1760529012907,-313.90288985,0.00014817,2]
[391324461,1760529014598,-160.36,0.00014817,2]
[391324463,1760529028710,535.38936668,0.00027397,120]
[391324471,1760529032053,-39.64,0.00014817,2]
[391324472,1760529032063,-60054.18930559,0.00014817,2]
[391324473,1760529032072,-524.0,0.00014834,2]
[391324474,1760529032082,-195.0,0.00014834,2]
[391324475,1760529032092,-419.37160863,0.00014835,2]
[391324476,1760529032101,-524.0,0.00014837,2]
[391324477,1760529032112,-37869.27527943,0.00014849,2]
[391324478,1760529032124,-37907.698956,0.00014849,2]
[391324479,1760529032134,-2446.95873,0.0001485,2]
[391324480,1760529032144,-28582.57324065,0.00014853,2]
[391324481,1760529032155,-1254.41808677,0.00014853,2]
[391324482,1760529032167,-562.249999,0.00014853,2]
[391324483,1760529032215,-480.54707199,0.00014853,2]
[391324484,1760529032227,-255.38582036,0.00014853,2]
[391324485,1760529032239,-420.0,0.00014853,2]
[391324486,1760529032262,-2707.17570483,0.00014853,2]
[391324520,1760529037997,-1767.33225,0.00014853,2]
[391324521,1760529038009,-3747.98100163,0.00014853,2]
[391324522,1760529038020,-14055.2889453,0.00014853,2]
[391324523,1760529038031,-5169.79478841,0.00014859,2]
[391324524,1760529038041,-53832.95212053,0.00014873,2]
[391324525,1760529038051,-42976.43293117,0.00014875,2]
[391324526,1760529038067,-11225.0,0.00014875,2]
[391324527,1760529038220,-6249.34999999,0.00014875,2]
[391324537,1760529040469,-15326.19130427,0.00014875,2]
[391324538,1760529040478,-5169.79478841,0.00014877,2]
[391324539,1760529040487,-53832.95212053,0.00014878,2]
[391324540,1760529040497,-5169.79478841,0.00014882,2]
[391324541,1760529040505,-1200.0,0.00014898,2]
[391324542,1760529040515,-150.0,0.00014899,2]
[391324543,1760529040523,-300.0,0.00014899,2]
[391324544,1760529040532,-1200.0,0.00014899,2]
[391324545,1760529040542,-5000.0,0.000149,2]
[391324546,1760529040551,-206.9526358,0.000149,2]
[391324547,1760529040560,-258.35156112,0.000149,2]
[391324548,1760529040569,-358.03012784,0.000149,2]
[391324549,1760529040578,-168.88555319,0.000149,2]
[391324550,1760529040587,-27134.04254621,0.000149,2]
[391324551,1760529040604,-7515.5858709,0.000149,2]
[391324552,1760529040618,-3404.98197448,0.000149,2]
[391324553,1760529040629,-672.74055537,0.000149,2]
[391324558,1760529043026,-1.6e-07,0.000149,2]
[391324564,1760529043854,-29696.59519909,0.000149,2]
[391324565,1760529043864,-1006.0,0.000149,2]
[391324566,1760529043872,-500.0,0.000149,2]
[391324567,1760529043881,-488.25276816,0.000149,2]
[391324568,1760529043890,-200.0,0.00014965,2]
[391324569,1760529043899,-2403.444,0.0001497,2]
[391324570,1760529043908,-169.769,0.0001497,2]
[391324571,1760529043917,-500.0,0.00014973,2]
[391324572,1760529043926,-538.43782034,0.00014973,2]
[391324573,1760529043935,-500.0,0.00014973,2]
[391324574,1760529043945,-500.0,0.00014973,2]
[391324575,1760529043954,-500.0,0.00014973,2]
[391324576,1760529043963,-500.81021082,0.00014973,2]
[391324577,1760529043972,-172.7322218,0.00014973,2]
[391324578,1760529043980,-500.0,0.00014973,2]
[391324579,1760529043990,-500.0,0.00014973,2]
[391324580,1760529043999,-500.0,0.00014973,2]
[391324581,1760529044008,-500.0,0.00014973,2]
[391324582,1760529044018,-500.0,0.00014973,2]
[391324583,1760529044027,-500.0,0.00014973,2]
[391324584,1760529044036,-500.0,0.00014973,2]
[391324585,1760529044045,-500.0,0.00014973,2]
[391324586,1760529044054,-500.0,0.00014973,2]
[391324587,1760529044063,-500.0,0.00014973,2]
[391324588,1760529044072,-504.1565737,0.00014973,2]
[391324589,1760529044081,-298.55858783,0.00014973,2]
[391324590,1760529044090,-500.0,0.00014973,2]
[391324591,1760529044099,-500.0,0.00014973,2]
[391324592,1760529044108,-500.0,0.00014973,2]
[391324593,1760529044117,-163.72103084,0.00014973,2]
[391324594,1760529044126,-500.0,0.00014973,2]
[391324595,1760529044136,-500.0,0.00014973,2]
[391324596,1760529044145,-500.0,0.00014973,2]
[391324597,1760529044154,-2446.95873,0.0001498,2]
[391324598,1760529044163,-151.0,0.0001499,2]
[391324599,1760529044172,-151.0,0.0001499,2]
[391324600,1760529044181,-299.93729149,0.0001499,2]
[391324601,1760529044190,-322.6107,0.0001499,2]
[391324602,1760529044199,-151.0,0.0001499,2]
[391324603,1760529044208,-151.0,0.0001499,2]
[391324604,1760529044217,-200.0,0.0001499,2]
[391324605,1760529044226,-151.0,0.0001499,2]
[391324606,1760529044235,-255.84379406,0.0001499,2]
[391324607,1760529044244,-1267.0,0.00014992,2]
[391324608,1760529044253,-749.0,0.00014992,2]
[391324609,1760529044263,-3407.0,0.00014992,2]
[391324610,1760529044271,-2049.0,0.00014992,2]
[391324611,1760529044281,-571.0,0.00014992,2]
[391324612,1760529044289,-1309.0,0.00014992,2]
[391324613,1760529044298,-604.0,0.00014992,2]
[391324614,1760529044307,-1588.0,0.00014992,2]
[391324615,1760529044316,-816.0,0.00014992,2]
[391324616,1760529044325,-4014.0,0.00014992,2]
[391324617,1760529044334,-451.455,0.00014992,2]
[391324618,1760529044343,-1583.0,0.00014992,2]
[391324619,1760529044356,-556.0,0.00014992,2]
[391324620,1760529044373,-151.0,0.00014997,2]
[391324621,1760529044383,-500.0,0.00014999,2]
[391324622,1760529044392,-408.60393104,0.00014999,2]
[391324623,1760529044401,-500.0,0.00014999,2]
[391324624,1760529044413,-350.92485888,0.00014999,2]
[391324625,1760529044422,-530.08048973,0.00014999,2]
[391324626,1760529044431,-424.7882359,0.00014999,2]
[391324627,1760529044440,-500.0,0.00014999,2]
[391324628,1760529044450,-500.0,0.00014999,2]
[391324629,1760529044460,-488.04543456,0.00014999,2]
[391324630,1760529044469,-146344.8765086,0.00014999,2]
[391324631,1760529044478,-150.0,0.00014999,2]
[391324632,1760529044487,-170.66368928,0.00014999,2]
[391324633,1760529044496,-150.0,0.00014999,2]
[391324634,1760529044505,-1890.0,0.00015,2]
[391324635,1760529044514,-36734.84827166,0.00015,2]
[391324636,1760529044526,-11484.10200001,0.00015,2]
[391324637,1760529044548,-1919.7,0.00015,2]
[391324638,1760529044559,-363.01273596,0.00015,2]
[391324639,1760529044570,-456.5769477,0.00015,2]
[391324640,1760529044584,-1798.85473665,0.00015,2]
[391324641,1760529044594,-2375.43320778,0.00015,2]
[391324642,1760529044605,-344.23679222,0.00015,2]
[391324643,1760529044615,-1082.28,0.00015,2]
[391324672,1760529046100,-222.71183803,0.000149,2]
[391324674,1760529046110,-2980.28040197,0.00015,2]
[391324676,1760529046121,-1299.92129765,0.00015,2]
[391324679,1760529071076,-154.77803697,0.00014899,2]
[391324680,1760529086301,-230.55834419,0.00014899,2]
[391324681,1760529114274,1062.0,0.00030209,30]
[391324682,1760529116385,-198.29361868,0.00014899,2]
[391324683,1760529122423,-300.0,0.00014898,2]
[391324684,1760529122459,-281.54253711,0.00014899,2]
[391324685,1760529124048,32107.48,0.00030209,30]
[391324686,1760529125086,-286.12925001,0.00014899,2]
[391324687,1760529126625,-162.87235761,0.00014899,2]
[391324688,1760529128846,-383.89011454,0.00014899,2]
[391324690,1760529133692,1000.0,0.00030209,30]
[391324691,1760529140634,1000.0,0.00030209,30]
[391324692,1760529145404,-155.55526517,0.00014899,2]
[391324693,1760529147635,1000.0,0.00030209,30]
[391324694,1760529148950,-485.63462029,0.00014898,2]
[391324695,1760529150498,-273.97974045,0.00014898,2]
[391324696,1760529152437,-159.38563926,0.00014898,2]
[391324697,1760529152460,-336.10140343,0.00014899,2]
[391324698,1760529155266,1000.0,0.00030209,30]
[391324699,1760529155921,-236.66701204,0.00014899,2]
[391324700,1760529160070,-237.97704788,0.00014899,2]
[391324701,1760529163026,1000.0,0.0003021,30]
[391324702,1760529171786,-160.35,0.00014899,2]
[391324703,1760529173272,-272.62243928,0.00014899,2]
[391324704,1760529175926,-275.80756072,0.00014899,2]
[391324705,1760529179434,-190.21738323,0.00014899,2]
[391324706,1760529180847,-232.59270666,0.00014899,2]
[391324707,1760529182496,-307.20737369,0.00014899,2]
[391324708,1760529183941,-258.39729334,0.00014899,2]
[391324709,1760529189545,-163.02262631,0.00014899,2]
[391324710,1760529191564,-204.5,0.00014899,2]
[391324711,1760529196358,-13.97780777,0.00014899,2]
[391324712,1760529196379,-236.02219223,0.00014899,2]
[391324713,1760529259535,144842.2655794,0.0003021,30]
[391324714,1760529263546,1000.0,0.0003021,30]
[391324718,1760529885465,201.89,0.00027397,120]
[391324730,1760529949773,900.0,0.00027,120]
[391324731,1760529970341,-150.0,0.00013488,2]
[391324732,1760529970362,-74.44009699,0.00013488,2]
[391324733,1760530022804,1848.44,0.00027397,120]
[391324734,1760530024634,1848.44,0.00027397,120]
[391324735,1760530024663,1848.44,0.00027397,120]
[391324736,1760530024720,1848.44,0.00027397,120]
[391324737,1760530024806,1848.44,0.00027397,120]
[391324738,1760530025254,1848.44,0.00027397,120]
[391324739,1760530025407,1848.44,0.00027397,120]
[391324740,1760530025634,1848.44,0.00027397,120]
[391324741,1760530025717,1848.44,0.00027397,120]
[391324742,1760530025766,1848.44,0.00027397,120]
[391324743,1760530025878,1848.44,0.00027397,120]
[391324744,1760530026124,1848.44,0.00027397,120]
[391324745,1760530026363,1848.44,0.00027397,120]
[391324746,1760530026600,1848.44,0.00027397,120]
[391324747,1760530026858,1848.44,0.00027397,120]
[391324748,1760530027103,1848.44,0.00027397,120]
[391324749,1760530027339,1848.44,0.00027397,120]
[391324750,1760530027597,1848.44,0.00027397,120]
[391324751,1760530027999,1848.44,0.00027397,120]
[391324752,1760530028245,1848.44,0.00027397,120]
[391324753,1760530028552,1848.44,0.00027397,120]
[391324754,1760530029143,1848.44,0.00027397,120]
[391324755,1760530029422,1848.44,0.00027397,120]
[391324756,1760530029705,1848.53235614,0.00027397,120]
[391324782,1760530232551,-80.99960832,0.00013488,2]
[391324783,1760530232561,-1159.32292312,0.00013542,2]
[391324784,1760530232570,-334.34931231,0.00013597,2]
[391324785,1760530232579,-2000.0,0.00013707,2]
[391324786,1760530232588,-1500.0,0.0001372,2]
[391324788,1760530232598,-164.4,0.00013736,2]
[391324790,1760530232607,-91.3675144,0.00013754,2]
[391324793,1760530232622,-2408.6324856,0.00013754,2]
[391324795,1760530232632,-1200.0,0.00013925,2]
[391324797,1760530232641,-536.42,0.00013926,2]
[391324799,1760530232650,-300.0,0.00013963,2]
[391324801,1760530232659,-250.0,0.00013963,2]
[391324803,1760530232669,-150.0,0.00013979,2]
[391324805,1760530232678,-852.25,0.00014015,2]
[391324807,1760530232687,-277.35679052,0.0001417,2]
[391324809,1760530232696,-910.12,0.00014488,2]
[391324812,1760530232707,-164.4,0.00014717,2]
[391324815,1760530232716,-150.0,0.00014835,2]
[391324818,1760530232725,-2000.0,0.00014836,2]
[391324820,1760530232734,-195.0,0.00014836,2]
[391324821,1760530232744,-2500.0,0.00014836,2]
[391324823,1760530232753,-250.0,0.00014836,2]
[391324826,1760530232763,-2500.0,0.00014836,2]
[391324829,1760530232772,-195.0,0.00014836,2]
[391324831,1760530232782,-2000.0,0.00014836,2]
[391324833,1760530232791,-250.0,0.00014836,2]
[391324835,1760530232800,-300.0,0.00014836,2]
[391324837,1760530232809,-193.0,0.00014836,2]
[391324838,1760530232820,-2500.0,0.00014836,2]
[391324839,1760530232829,-195.0,0.00014836,2]
[391324840,1760530232838,-2000.0,0.00014836,2]
[391324841,1760530232847,-2500.0,0.00014836,2]
[391324842,1760530232856,-195.0,0.00014836,2]
[391324843,1760530232865,-300.0,0.00014836,2]
[391324844,1760530232874,-300.0,0.00014836,2]
[391324845,1760530232883,-1583.0,0.00014842,2]
[391324846,1760530232892,-455.522,0.00014842,2]
[391324847,1760530232902,-4014.0,0.00014842,2]
[391324849,1760530232911,-1737.48897,0.0001485,2]
[391324851,1760530232921,-322.6107,0.00014891,2]
[391324853,1760530232931,-200.0,0.00014891,2]
[391324855,1760530232940,-151.0,0.00014891,2]
[391324857,1760530232949,-168.49930623,0.00014891,2]
[391324859,1760530232959,-151.0,0.00014891,2]
[391324861,1760530232968,-151.0,0.00014891,2]
[391324863,1760530232977,-151.0,0.00014891,2]
[391324864,1760530232987,-151.0,0.00014891,2]
[391324865,1760530232995,-151.0,0.00014891,2]
[391324866,1760530233005,-208.4268758,0.00014891,2]
[391324867,1760530233014,-151.0,0.00014891,2]
[391324868,1760530233024,-151.0,0.00014891,2]
[391324869,1760530233033,-151.0,0.00014891,2]
[391324870,1760530233043,-151.0,0.00014891,2]
[391324871,1760530233052,-151.0,0.00014891,2]
[391324872,1760530233062,-151.0,0.00014891,2]
[391324873,1760530233071,-500.0,0.00014891,2]
[391324874,1760530233081,-151.0,0.00014891,2]
[391324875,1760530233090,-151.0,0.00014891,2]
[391324876,1760530233099,-151.0,0.00014891,2]
[391324877,1760530233109,-151.0,0.00014891,2]
[391324878,1760530233118,-151.0,0.00014891,2]
[391324879,1760530233127,-151.0,0.00014891,2]
[391324880,1760530233136,-151.0,0.00014891,2]
[391324881,1760530233146,-11.97021816,0.00014891,2]
[391324882,1760530233188,-139.02978184,0.00014891,2]
[391324883,1760530233198,-151.0,0.00014891,2]
[391324884,1760530233207,-151.0,0.00014891,2]
[391324885,1760530233216,-200.0,0.00014891,2]
[391324886,1760530233226,-151.0,0.00014891,2]
[391324887,1760530233235,-353.0,0.00014896,2]
[391324888,1760530233245,-1948.93427131,0.00014896,2]
[391324889,1760530238196,-6443.0,0.00014842,2]
[391324890,1760530238206,-2319.81988943,0.00014896,2]
[391324891,1760530238215,-3684.97340235,0.00014896,2]
[391324892,1760530238261,-583.78075838,0.00014896,2]
[391324893,1760530238272,-2947.01924162,0.00014897,2]
[391324894,1760530238285,-1121.3,0.00014897,2]
[391324895,1760530238305,-200.43491911,0.00014897,2]
[391324896,1760530238314,-440.43816426,0.00014897,2]
[391324897,1760530238326,-59.56183574,0.00014897,2]
[391324898,1760530238336,-3800.27750441,0.00014897,2]
[391324899,1760530238478,-468.47665632,0.00014897,2]
[391324900,1760530238488,-1120.31151606,0.00014898,2]
[391324907,1760530240278,-379.15666321,0.00014898,2]
[391324908,1760530240379,-2769.28598146,0.00014898,2]
[391324909,1760530240389,-4268.75416073,0.00014898,2]
[391324910,1760530240399,-4268.75416073,0.00014899,2]
[391324911,1760530240409,-516.66413057,0.00014899,2]
[391324912,1760530240418,-288.82853643,0.00014899,2]
[391324913,1760530240428,-4268.75416073,0.00014899,2]
[391324914,1760530240437,-4268.75416073,0.000149,2]
[391324915,1760530240447,-5000.0,0.000149,2]
[391324916,1760530240457,-165.56210864,0.000149,2]
[391324917,1760530240467,-250.72722069,0.000149,2]
[391324918,1760530240476,-4268.75416073,0.000149,2]
[391324919,1760530240485,-238.6867519,0.000149,2]
[391324920,1760530240495,-10350.52969059,0.000149,2]
[391324921,1760530240504,-168.0852594,0.000149,2]
[391324922,1760530240514,-325.50184544,0.000149,2]
[391324923,1760530240524,-353.0,0.00014903,2]
[391324924,1760530240534,-1922.755,0.0001497,2]
[391324925,1760530240543,-169.769,0.0001497,2]
[391324926,1760530240553,-501.58960617,0.00014973,2]
[391324927,1760530240562,-500.10331404,0.00014973,2]
[391324928,1760530240571,-500.0,0.00014973,2]
[391324929,1760530240581,-500.0,0.00014973,2]
[391324930,1760530240590,-500.0,0.00014973,2]
[391324931,1760530240600,-500.0,0.00014973,2]
[391324932,1760530240609,-500.0,0.00014973,2]
[391324933,1760530240619,-475.44211287,0.00014973,2]
[391324934,1760530240628,-500.0,0.00014973,2]
[391324935,1760530240637,-570.95181044,0.00014973,2]
[391324936,1760530240647,-500.0,0.00014973,2]
[391324938,1760530240656,-500.0,0.00014973,2]
[391324939,1760530240666,-500.0,0.00014973,2]
[391324941,1760530240676,-500.0,0.00014973,2]
[391324942,1760530240686,-500.0,0.00014973,2]
[391324943,1760530240695,-500.0,0.00014973,2]
[391324944,1760530240704,-500.0,0.00014973,2]
[391324946,1760530240714,-500.0,0.00014973,2]
[391324947,1760530240723,-501.17885123,0.00014973,2]
[391324948,1760530240733,-500.0,0.00014973,2]
[391324949,1760530240743,-500.0,0.00014973,2]
[391324950,1760530240752,-500.0,0.00014973,2]
[391324951,1760530240762,-338.4,0.00014986,2]
[391324952,1760530240771,-338.4,0.00014986,2]
[391324953,1760530240782,-338.4,0.0001499,2]
[391324954,1760530240791,-338.4,0.0001499,2]
[391324955,1760530240801,-338.4,0.0001499,2]
[391324956,1760530240811,-721.97842604,0.0001499,2]
[391324957,1760530240820,-721.97842604,0.0001499,2]
[391324958,1760530240830,-721.97842604,0.0001499,2]
[391324959,1760530240839,-150.0,0.00014992,2]
[391324960,1760530240849,-150.0,0.00014992,2]
[391324961,1760530240859,-150.0,0.00014992,2]
[391324962,1760530240868,-150.0,0.00014992,2]
[391324963,1760530240878,-150.0,0.00014992,2]
[391324964,1760530240887,-150.0,0.00014992,2]
[391324965,1760530240897,-150.0,0.00014992,2]
[391324966,1760530240906,-1267.0,0.00014992,2]
[391324967,1760530240916,-771.264,0.00014992,2]
[391324968,1760530240925,-2049.0,0.00014992,2]
[391324969,1760530240934,-3407.0,0.00014992,2]
[391324970,1760530240944,-1309.0,0.00014992,2]
[391324971,1760530240953,-571.0,0.00014992,2]
[391324972,1760530240963,-1588.0,0.00014992,2]
[391324973,1760530240971,-604.0,0.00014992,2]
[391324974,1760530240980,-816.0,0.00014992,2]
[391324975,1760530240990,-314.00613957,0.00014994,2]
[391324976,1760530240999,-500.0,0.00014994,2]
[391324977,1760530241008,-500.0,0.00014994,2]
[391324978,1760530241018,-500.0,0.00014994,2]
[391324979,1760530241030,-500.0,0.00014994,2]
[391324980,1760530241039,-500.0,0.00014994,2]
[391324981,1760530241048,-500.0,0.00014994,2]
[391324982,1760530241057,-375.0,0.00014994,2]
[391324983,1760530241067,-500.0,0.00014994,2]
[391324984,1760530241076,-500.0,0.00014994,2]
[391324985,1760530241085,-392.50710074,0.00014994,2]
[391324986,1760530241095,-31376.7754961,0.00014995,2]
[391324987,1760530241104,-79070.1095356,0.00014996,2]
[391324988,1760530241113,-24979.20549539,0.00014996,2]
[391324989,1760530241137,-2502.38307485,0.00014996,2]
[391324990,1760530241148,-6790.72962145,0.00014996,2]
[391324991,1760530241182,-1122.2,0.00014996,2]
[391324992,1760530241193,-3397.842,0.00014996,2]
[391324993,1760530241224,-366.49410161,0.00014996,2]
[391324994,1760530241235,-808.9545865,0.00014996,2]
[391324995,1760530241480,-1.6e-07,0.00014996,2]
[391324996,1760530241492,-1371.10347681,0.00014996,2]
[391325035,1760530243989,-180.00067673,0.00014996,2]
[391325036,1760530243998,-116.4248229,0.00014996,2]
[391325037,1760530244010,-2738.930849,0.00014996,2]
[391325038,1760530244019,-1402.339588,0.00014996,2]
[391325039,1760530244028,-167.1491192,0.00014996,2]
[391325040,1760530244043,-258.33206529,0.00014996,2]
[391325041,1760530244052,-225.19,0.00014997,2]
[391325042,1760530244062,-1622.64812484,0.00014998,2]
[391325043,1760530244093,-303.36132239,0.00014998,2]
[391325044,1760530244104,-609.60670739,0.00014998,2]
[391325045,1760530244115,-429.78910503,0.00014998,2]
[391325046,1760530244125,-347.56096,0.00014998,2]
[391325047,1760530244140,-608.80001,0.00014998,2]
[391325048,1760530244158,-1814.95127278,0.00014998,2]
[391325049,1760530244168,-538.699999,0.00014998,2]
[391325050,1760530244179,-261.02934497,0.00014998,2]
[391325051,1760530244189,-155.533,0.00014999,2]
[391325052,1760530244198,-150.0,0.00014999,2]
[391325053,1760530244207,-357.97995952,0.00014999,2]
[391325054,1760530244216,-160.49450482,0.00014999,2]
[391325055,1760530244225,-1512.0,0.00015,2]
[391325056,1760530244234,-19786.96319228,0.00015,2]
[391325057,1760530246306,-1126.36345547,0.00015,2]
[391325058,1760530246317,-339532.34560959,0.00015,2]
[391325059,1760530246403,-16119.82009494,0.00015,2]
[391325063,1760530331266,2270.21188227,0.0003021,120]
[391325064,1760530793954,2476.4,0.00030219,120]
[391325065,1760530818749,155.18,6.999e-05,2]
[391325066,1760530818942,155.18,7.537e-05,2]
[391325067,1760530819154,155.18,8.076e-05,2]
[391325068,1760530819410,155.18,8.614e-05,2]
[391325069,1760530819644,155.18,9.152e-05,2]
[391325070,1760530819826,155.18,9.691e-05,2]
[391325071,1760530820024,155.18,0.00010229,2]
[391325072,1760530820238,155.18,0.00010768,2]
[391325073,1760530820439,155.18,0.00011306,2]
[391325074,1760530820644,155.18,0.00011844,2]
[391325075,1760530820834,155.18,0.00012383,2]
[391325076,1760531050531,-155.18,0.00012921,2]
[391325077,1760531050553,-289.73762311,0.00013056,2]
[391325078,1760531052872,-487.232409,0.00013056,2]
[391325079,1760531054436,-194.46217041,0.00013056,2]
[391325080,1760531056199,-200.38126302,0.00013056,2]
[391325081,1760531059046,-480.01145564,0.00013056,2]
[391325082,1760531062428,-314.11051528,0.00013056,2]
[391325083,1760531064760,-34.06456354,0.00013056,2]
[391325084,1760531064784,-123.71007904,0.0001319,2]
[391325093,1760531260323,-126.28992096,0.0001319,2]
[391325094,1760531260344,-39.32214276,0.0001346,2]
[391325095,1760531275317,-351.1645253,0.00013,2]
[391325096,1760531278837,-284.78393893,0.00013,2]
[391325097,1760531280414,-230.43212214,0.00013,2]
[391325098,1760531282613,-201.08234772,0.00013,2]
[391325099,1760531284831,-445.80135087,0.00013,2]
[391325100,1760531288508,-172.28817662,0.00013,2]
[391325103,1760531305446,-302.29262286,0.00013,2]
[391325105,1760531320871,8052.59288454,0.00012535,2]
[391325106,1760531326114,-845.64047087,0.00013,2]
[391325107,1760531328468,-331.12591197,0.00013,2]
[391325108,1760531330472,-210.93421474,0.00013,2]
[391325109,1760531332547,-165.77664263,0.00013,2]
[391325110,1760531334020,-363.70737714,0.00013,2]
[391325111,1760531350310,-215.86258775,0.00013,2]
[391325112,1760531352385,-203.38939099,0.00013,2]
[391325113,1760531353318,-51.8993142,0.00013,2]
[391325114,1760531353343,-115.85785724,0.0001346,2]
[391325115,1760531353364,-5.04891227,0.00013716,2]
[391325128,1760531381403,-1254.76831777,0.00014999,5]
[391325129,1760531411360,250.0,0.00013944,7]
[391325130,1760531411810,1500.0,0.00027397,120]
[391325157,1760531431389,-1634.03,0.00013977,2]
[391325159,1760531431397,-155.18,0.00013998,2]
[391325161,1760531431404,-2657.64,0.00014055,2]
[391325162,1760531431412,-277.35679052,0.0001417,2]
[391325163,1760531431419,-1200.0,0.00014183,2]
[391325164,1760531431426,-1600.0,0.00014184,2]
[391325165,1760531431434,-300.0,0.00014212,2]
[391325166,1760531431441,-150.0,0.00014299,2]
[391325167,1760531431449,-250.0,0.000143,2]
[391325168,1760531431456,-2500.0,0.000143,2]
[391325169,1760531431463,-2611.92427817,0.000143,2]
[391325170,1760531431470,-195.0,0.000143,2]
[391325171,1760531431477,-1784.13741225,0.000143,2]
[391325172,1760531431485,-250.0,0.000143,2]
[391325173,1760531431494,-2500.0,0.000143,2]
[391325174,1760531431501,-2500.0,0.000143,2]
[391325175,1760531431509,-2500.0,0.000143,2]
[391325176,1760531431516,-180.0,0.000143,2]
[391325177,1760531431523,-173.68111234,0.000143,2]
[391325178,1760531431531,-166.67,0.00014362,2]
[391325179,1760531431541,-268.3693825,0.00014509,2]
[391325180,1760531431549,-195.0,0.00014509,2]
[391325181,1760531431556,-195.0,0.00014509,2]
[391325182,1760531431564,-413.53,0.000146,2]
[391325183,1760531431573,-175.97,0.00014678,2]
[391325184,1760531431580,-180.15,0.00014769,2]
[391325185,1760531431587,-695.07,0.000148,2]
[391325186,1760531431596,-695.07,0.000148,2]
[391325187,1760531431603,-695.07,0.000148,2]
[391325188,1760531431611,-200.0,0.00014841,2]
[391325189,1760531431618,-322.6107,0.00014841,2]
[391325190,1760531431625,-180.0,0.00014848,2]
[391325191,1760531431634,-26250.50842249,0.0001485,2]
[391325192,1760531431643,-10822.40170455,0.0001485,2]
[391325193,1760531431650,-500.0,0.0001485,2]
[391325194,1760531431660,-165.56210864,0.000149,2]
[391325195,1760531431668,-214.90904634,0.000149,2]
[391325196,1760531431675,-5000.0,0.000149,2]
[391325197,1760531431683,-159.12450126,0.000149,2]
[391325198,1760531431690,-222.71183803,0.000149,2]
[391325199,1760531431697,-168.0,0.00014939,2]
[391325201,1760531431710,-1538.204,0.0001497,2]
[391325203,1760531431719,-169.769,0.0001497,2]
[391325205,1760531431727,-500.0,0.00014973,2]
[391325207,1760531431736,-258.43761706,0.00014973,2]
[391325211,1760531431751,-500.0,0.00014973,2]
[391325214,1760531431760,-500.0,0.00014973,2]
[391325216,1760531431769,-500.0,0.00014973,2]
[391325219,1760531431779,-500.0,0.00014973,2]
[391325222,1760531431794,-500.0,0.00014973,2]
[391325225,1760531431804,-500.0,0.00014973,2]
[391325228,1760531431813,-500.0,0.00014973,2]
[391325231,1760531431823,-500.0,0.00014973,2]
[391325234,1760531431833,-500.0,0.00014973,2]
[391325236,1760531431843,-500.0,0.00014973,2]
[391325238,1760531431852,-500.0,0.00014973,2]
[391325240,1760531431862,-500.0,0.00014973,2]